fUSD/lending_fUSD_20241221
["ID","MTS","AMOUNT","RATE_DAILY","PERIOD"]
[346233041,1734792646185,-500.0,0.00019452,2]
[346233042,1734792646194,-490.00829842,0.00019452,2]
[346233043,1734792646204,-500.0,0.00019452,2]
[346233044,1734792646213,-500.0,0.00019452,2]
[346233045,1734792646225,-500.0,0.00019452,2]
[346233046,1734792646234,-500.0,0.00019452,2]
[346233047,1734792646243,-500.0,0.00019452,2]
[346233048,1734792646253,-500.0,0.00019452,2]
[346233049,1734792646263,-622.51,0.00019452,2]
[346233050,1734792646273,-500.0,0.00019452,2]
[346233051,1734792646283,-126.37849079,0.00019452,2]
[346233052,1734792646303,-373.62150921,0.00019452,2]
[346233053,1734792646313,-92.81849076,0.00019452,2]
[346233054,1734792646329,-1077.84150924,0.00019452,2]
[346233055,1734792646338,-330.08,0.00019452,2]
[346233056,1734792646348,-500.0,0.00019452,2]
[346233057,1734792646358,-500.0,0.00019452,2]
[346233058,1734792646367,-26.39403976,0.00019452,2]
[346233061,1734793028571,589.53,0.00016142,2]
[346233062,1734793141126,250.0,0.00017975,2]
[346233063,1734793158043,250.0,0.00017979,2]
[346233064,1734793240559,164.42,0.00017984,2]
[346233065,1734793270853,298.57,0.00018223,30]
[346233066,1734793324783,200.0,0.00017998,2]
[346233067,1734793511936,250.0,0.00017985,2]
[346233068,1734793719317,1784.61,0.00017944,2]
[346233069,1734793785427,643.69,0.00017953,2]
[346233090,1734793832268,-167.34,0.00018024,2]
[346233091,1734793832278,-455.33097116,0.0001806,2]
[346233092,1734793832289,-544.66902884,0.0001806,2]
[346233093,1734793832299,-560.82,0.00018071,2]
[346233094,1734793832307,-348.21,0.00018089,2]
[346233095,1734793832317,-13.3940028,0.00018108,2]
[346233096,1734793832329,-23562.8259972,0.00018108,2]
[346233097,1734793832339,-164.91,0.00018196,2]
[346233098,1734793832348,-589.53,0.00018406,2]
[346233099,1734793832358,-397.62723663,0.0001842,2]
[346233100,1734793832367,-153.73,0.00018558,2]
[346233101,1734793832376,-153.73,0.00018569,2]
[346233102,1734793832386,-507.6,0.00018575,2]
[346233103,1734793832397,-153.73,0.00018581,2]
[346233104,1734793832407,-153.73,0.00018592,2]
[346233105,1734793832416,-153.73,0.00018604,2]
[346233106,1734793832425,-153.73,0.00018616,2]
[346233107,1734793832436,-153.73,0.00018627,2]
[346233108,1734793832446,-153.73,0.00018639,2]
[346233109,1734793832455,-153.73,0.0001865,2]
[346233110,1734793832465,-199.0,0.00018708,2]
[346233111,1734793832475,-151.0,0.00018808,2]
[346233112,1734793832485,-397.62723663,0.00018876,2]
[346233113,1734793832494,-646.249,0.0001898,2]
[346233114,1734793832504,-2465.0,0.00019,2]
[346233115,1734793832519,-397.62723663,0.00019062,2]
[346233116,1734793832529,-153.0,0.00019076,2]
[346233117,1734793832538,-153.0,0.00019076,2]
[346233118,1734793832547,-153.0,0.00019076,2]
[346233119,1734793832556,-153.0,0.00019076,2]
[346233120,1734793832565,-153.0,0.00019076,2]
[346233121,1734793832575,-153.0,0.00019076,2]
[346233122,1734793832584,-153.0,0.00019076,2]
[346233123,1734793832593,-153.0,0.00019076,2]
[346233124,1734793832603,-153.0,0.00019076,2]
[346233125,1734793832612,-153.0,0.00019076,2]
[346233126,1734793832621,-153.0,0.00019076,2]
[346233128,1734793832631,-153.0,0.00019076,2]
[346233130,1734793832641,-153.0,0.00019076,2]
[346233131,1734793832650,-153.0,0.00019076,2]
[346233133,1734793832659,-153.0,0.00019076,2]
[346233136,1734793832668,-153.0,0.00019076,2]
[346233141,1734793832678,-153.0,0.00019076,2]
[346233144,1734793832689,-153.0,0.00019076,2]
[346233149,1734793832699,-153.0,0.00019076,2]
[346233152,1734793832708,-153.0,0.00019076,2]
[346233155,1734793832717,-153.0,0.00019076,2]
[346233158,1734793832727,-153.0,0.00019076,2]
[346233161,1734793832736,-153.0,0.00019076,2]
[346233165,1734793832746,-153.0,0.00019076,2]
[346233168,1734793832755,-153.0,0.00019076,2]
[346233171,1734793832764,-153.0,0.00019076,2]
[346233173,1734793832773,-153.0,0.00019076,2]
[346233177,1734793832785,-153.0,0.00019076,2]
[346233179,1734793832794,-153.0,0.00019076,2]
[346233180,1734793832803,-153.0,0.00019076,2]
[346233181,1734793832813,-153.0,0.00019076,2]
[346233182,1734793832822,-153.0,0.00019076,2]
[346233184,1734793832832,-153.0,0.00019076,2]
[346233186,1734793832841,-153.0,0.00019076,2]
[346233189,1734793832851,-153.0,0.00019076,2]
[346233191,1734793832860,-153.0,0.00019076,2]
[346233193,1734793832870,-153.0,0.00019076,2]
[346233195,1734793832879,-153.0,0.00019076,2]
[346233197,1734793832888,-153.0,0.00019076,2]
[346233199,1734793832900,-153.0,0.00019076,2]
[346233201,1734793832909,-153.0,0.00019076,2]
[346233202,1734793832919,-153.0,0.00019076,2]
[346233203,1734793832928,-153.0,0.00019076,2]
[346233204,1734793832940,-153.0,0.00019076,2]
[346233205,1734793832949,-153.0,0.00019076,2]
[346233206,1734793832958,-153.0,0.00019076,2]
[346233207,1734793832966,-153.0,0.00019076,2]
[346233208,1734793832976,-153.0,0.00019076,2]
[346233209,1734793832985,-153.0,0.00019076,2]
[346233210,1734793832995,-153.0,0.00019076,2]
[346233211,1734793833004,-153.0,0.00019076,2]
[346233212,1734793833013,-153.0,0.00019076,2]
[346233213,1734793833022,-153.0,0.00019076,2]
[346233214,1734793833032,-153.0,0.00019076,2]
[346233215,1734793833041,-153.0,0.00019076,2]
[346233216,1734793833050,-153.0,0.00019076,2]
[346233217,1734793833059,-153.0,0.00019076,2]
[346233218,1734793833068,-153.0,0.00019076,2]
[346233219,1734793833078,-153.0,0.00019076,2]
[346233220,1734793833088,-153.0,0.00019076,2]
[346233221,1734793833097,-153.0,0.00019076,2]
[346233222,1734793833106,-153.0,0.00019076,2]
[346233223,1734793833116,-153.0,0.00019076,2]
[346233224,1734793833125,-153.0,0.00019076,2]
[346233225,1734793833134,-153.0,0.00019076,2]
[346233226,1734793833143,-153.0,0.00019076,2]
[346233227,1734793833152,-153.0,0.00019076,2]
[346233228,1734793833161,-153.0,0.00019076,2]
[346233229,1734793833170,-153.0,0.00019076,2]
[346233230,1734793833179,-153.0,0.00019076,2]
[346233231,1734793833193,-153.0,0.00019076,2]
[346233232,1734793833202,-1651.5703,0.00019078,2]
[346233233,1734793833211,-490.03,0.00019078,2]
[346233234,1734793833220,-29264.9428,0.00019078,2]
[346233235,1734793833229,-6771.2535,0.00019078,2]
[346233236,1734793833239,-55945.0,0.00019105,2]
[346233237,1734793833248,-165.78,0.00019114,2]
[346233238,1734793833257,-2500.0,0.00019154,2]
[346233239,1734793833266,-7503.49769291,0.00019155,2]
[346233240,1734793833278,-1801.91397728,0.00019155,2]
[346233241,1734793833287,-28.08602272,0.00019155,2]
[346233242,1734793833299,-506.6,0.00019155,2]
[346233250,1734793837937,-465.31397728,0.00019155,2]
[346233251,1734793837949,-142.34404796,0.00019177,2]
[346233252,1734793838122,-500.72386877,0.00019177,2]
[346233255,1734793840466,-356.93208327,0.00019177,2]
[346233256,1734793840476,-500.0,0.00019177,2]
[346233257,1734793840486,-250.50106673,0.00019193,2]
[346233258,1734793840498,-822.43099173,0.00019193,2]
[346233259,1734793840508,-202.30223827,0.00019236,2]
[346233269,1734793843230,-9103.10943192,0.00019236,2]
[346233270,1734793843239,-1112.87846481,0.0001925,2]
[346233271,1734793843297,-15848.25863519,0.0001925,2]
[346233272,1734793843307,-500.0,0.00019254,2]
[346233273,1734793843316,-500.0,0.00019254,2]
[346233274,1734793843326,-500.0,0.00019254,2]
[346233275,1734793843335,-500.0,0.00019254,2]
[346233276,1734793843345,-500.0,0.00019255,2]
[346233277,1734793843355,-500.0,0.00019255,2]
[346233278,1734793843364,-500.0,0.00019255,2]
[346233279,1734793843373,-500.0,0.00019255,2]
[346233280,1734793843382,-500.0,0.00019255,2]
[346233281,1734793843391,-500.0,0.00019255,2]
[346233282,1734793843403,-500.0,0.00019255,2]
[346233283,1734793843412,-500.0,0.00019255,2]
[346233284,1734793843422,-500.0,0.00019255,2]
[346233285,1734793843432,-500.0,0.00019255,2]
[346233286,1734793843441,-500.0,0.00019255,2]
[346233287,1734793843456,-500.0,0.00019255,2]
[346233288,1734793843465,-500.0,0.00019255,2]
[346233289,1734793843475,-502.53073492,0.00019255,2]
[346233290,1734793843484,-500.0,0.00019255,2]
[346233291,1734793843493,-500.0,0.00019255,2]
[346233292,1734793843503,-500.0,0.00019255,2]
[346233293,1734793843512,-115.98577813,0.00019255,2]
[346233294,1734793843523,-384.01422187,0.00019255,2]
[346233295,1734793843533,-500.0,0.00019255,2]
[346233296,1734793843542,-500.0,0.00019255,2]
[346233297,1734793843552,-222.73983779,0.00019255,2]
[346233298,1734793843561,-500.0,0.00019255,2]
[346233299,1734793843570,-500.0,0.00019255,2]
[346233300,1734793843579,-500.0,0.00019255,2]
[346233301,1734793843589,-500.0,0.00019255,2]
[346233302,1734793843598,-500.0,0.00019255,2]
[346233303,1734793843608,-500.0,0.00019255,2]
[346233304,1734793843617,-500.0,0.00019255,2]
[346233305,1734793843627,-500.0,0.00019255,2]
[346233306,1734793843636,-507.96372042,0.00019255,2]
[346233307,1734793843645,-500.0,0.00019255,2]
[346233308,1734793843655,-500.0,0.00019255,2]
[346233309,1734793843664,-173.4,0.00019255,2]
[346233310,1734793843674,-500.0,0.00019255,2]
[346233311,1734793843683,-500.0,0.00019255,2]
[346233312,1734793843693,-500.0,0.00019255,2]
[346233313,1734793843705,-500.0,0.00019255,2]
[346233314,1734793843715,-500.0,0.00019255,2]
[346233315,1734793843724,-500.0,0.00019255,2]
[346233316,1734793843734,-500.0,0.00019255,2]
[346233317,1734793843743,-378.32363761,0.00019255,2]
[346233318,1734793843754,-500.0,0.00019255,2]
[346233320,1734793843763,-500.0,0.00019255,2]
[346233321,1734793843772,-500.0,0.00019255,2]
[346233322,1734793843782,-388.32,0.00019255,2]
[346233323,1734793843791,-500.0,0.00019255,2]
[346233324,1734793843800,-500.0,0.00019255,2]
[346233325,1734793843810,-589.37210229,0.00019255,2]
[346233326,1734793843819,-500.0,0.00019255,2]
[346233327,1734793843828,-500.0,0.00019255,2]
[346233328,1734793843838,-500.0,0.00019255,2]
[346233329,1734793843847,-500.0,0.00019255,2]
[346233330,1734793843856,-500.0,0.00019255,2]
[346233331,1734793843865,-500.0,0.00019255,2]
[346233332,1734793843874,-500.0,0.00019255,2]
[346233333,1734793843883,-500.0,0.00019255,2]
[346233334,1734793843892,-500.0,0.00019255,2]
[346233335,1734793843903,-500.0,0.00019255,2]
[346233336,1734793843915,-500.0,0.00019255,2]
[346233337,1734793843924,-500.0,0.00019255,2]
[346233338,1734793843934,-500.0,0.00019255,2]
[346233339,1734793843943,-1817.95686654,0.0001926,2]
[346233340,1734793843993,-3630.78052336,0.0001926,2]
[346233348,1734793845986,-2102.6565702,0.0001926,2]
[346233349,1734793846056,-282.829833,0.0001926,2]
[346233350,1734793846067,-256.09224003,0.0001926,2]
[346233351,1734793846079,-556.54999728,0.0001926,2]
[346233352,1734793846129,-121.57283749,0.0001926,2]
[346233353,1734793846139,-141.60518807,0.00019298,2]
[346233354,1734793846212,-1611.75,0.00019298,2]
[346233355,1734793846223,-3246.64481193,0.00019298,2]
[346233356,1734793846233,-8087.6584,0.000193,2]
[346233357,1734793846242,-1362.0,0.000193,2]
[346233358,1734793846252,-816.85255828,0.00019316,2]
[346233359,1734793846274,-2236.26,0.00019316,2]
[346233360,1734793846349,-6252.29911191,0.00019316,2]
[346233361,1734793846359,-225.26,0.00019322,2]
[346233362,1734793846368,-500.0,0.00019349,2]
[346233363,1734793846378,-500.0,0.00019349,2]
[346233364,1734793846387,-500.0,0.00019349,2]
[346233365,1734793846398,-785.84,0.00019349,2]
[346233366,1734793846407,-343.849784,0.00019349,2]
[346233367,1734793846417,-500.0,0.00019349,2]
[346233368,1734793846426,-500.0,0.00019349,2]
[346233369,1734793846436,-500.0,0.00019349,2]
[346233370,1734793846448,-565.86,0.00019349,2]
[346233371,1734793846458,-500.0,0.00019349,2]
[346233372,1734793846467,-283.724067,0.00019349,2]
[346233373,1734793846477,-154.425416,0.00019349,2]
[346233374,1734793846486,-161.648246,0.00019349,2]
[346233375,1734793846496,-809.36,0.00019349,2]
[346233376,1734793846505,-500.0,0.00019349,2]
[346233377,1734793846515,-500.0,0.00019349,2]
[346233378,1734793846524,-584.18,0.00019349,2]
[346233379,1734793846534,-500.0,0.00019349,2]
[346233380,1734793846543,-682.12,0.00019349,2]
[346233381,1734793846553,-500.0,0.00019349,2]
[346233382,1734793846562,-809.86,0.00019349,2]
[346233383,1734793846572,-613.41,0.00019349,2]
[346233384,1734793846581,-1124.7,0.00019349,2]
[346233385,1734793846590,-2014.28,0.00019349,2]
[346233386,1734793846599,-4332.02,0.00019349,2]
[346233387,1734793846609,-1049.11,0.00019349,2]
[346233388,1734793846619,-753.58094669,0.00019349,2]
[346233389,1734793846631,-1473.24905331,0.00019349,2]
[346233390,1734793846641,-798.44,0.00019349,2]
[346233391,1734793846650,-500.0,0.00019349,2]
[346233392,1734793846659,-2973.24,0.00019349,2]
[346233393,1734793846669,-2903.32,0.00019349,2]
[346233394,1734793846678,-500.0,0.00019349,2]
[346233395,1734793846687,-655.22,0.00019349,2]
[346233396,1734793846697,-1043.88,0.00019349,2]
[346233397,1734793846706,-616.01,0.00019349,2]
[346233398,1734793846715,-893.74,0.00019362,2]
[346233399,1734793846725,-500.0,0.00019362,2]
[346233400,1734793846734,-500.0,0.00019362,2]
[346233401,1734793846743,-500.0,0.00019362,2]
[346233402,1734793846753,-500.0,0.00019362,2]
[346233403,1734793846763,-803.05,0.00019362,2]
[346233404,1734793846775,-1506.7,0.00019362,2]
[346233405,1734793846784,-500.0,0.00019362,2]
[346233406,1734793846793,-604.8,0.00019362,2]
[346233407,1734793846803,-500.0,0.00019362,2]
[346233408,1734793846812,-2207.47,0.00019362,2]
[346233409,1734793846821,-983.83,0.00019362,2]
[346233410,1734793846830,-1024.46,0.00019362,2]
[346233411,1734793846839,-1086.14,0.00019362,2]
[346233412,1734793846848,-591.34886229,0.00019362,2]
[346233413,1734793846857,-1251.09,0.00019362,2]
[346233414,1734793846866,-1599.61,0.00019362,2]
[346233415,1734793846875,-500.0,0.00019362,2]
[346233416,1734793846885,-500.0,0.00019362,2]
[346233417,1734793846894,-515.38,0.00019362,2]
[346233418,1734793846906,-909.27,0.00019362,2]
[346233419,1734793846915,-4366.16,0.00019362,2]
[346233420,1734793846925,-832.34,0.00019362,2]
[346233421,1734793846934,-500.0,0.00019362,2]
[346233422,1734793846943,-500.0,0.00019362,2]
[346233423,1734793846954,-500.0,0.00019362,2]
[346233424,1734793846964,-152.87,0.00019388,2]
[346233425,1734793846974,-152.87,0.00019388,2]
[346233426,1734793846984,-152.87,0.00019388,2]
[346233427,1734793846994,-152.87,0.00019388,2]
[346233428,1734793847003,-152.87,0.00019388,2]
[346233429,1734793847012,-152.87,0.00019388,2]
[346233430,1734793847022,-152.87,0.00019388,2]
[346233431,1734793847031,-152.87,0.00019388,2]
[346233432,1734793847041,-9305.41167019,0.00019397,2]
[346233433,1734793847050,-158292.88041421,0.00019398,3]
[346233434,1734793847069,-557.6099985,0.00019398,3]
[346233435,1734793936927,593.91,0.00016454,2]
[346233436,1734793945629,186.37,0.00010137,2]
[346233438,1734794144814,283.64,0.00018379,30]
[346233439,1734794232335,150.0,0.00020222,120]
[346233440,1734794556033,470.49,0.00017973,2]
[346233441,1734794602729,20683.4,0.00017951,2]
[346233443,1734794734236,250.0,0.00017917,2]
[346233444,1734794752742,8238.37148829,0.00015,10]
[346233445,1734794753760,9009.323793,0.00018,2]
[346233447,1734794796097,668.39,0.00017848,2]
[346233450,1734794852036,188.28,0.00017845,2]
[346233451,1734794871122,462.27,0.00017865,2]
[346233453,1734794892332,154.68,0.00010137,2]
[346233456,1734794989995,564.21,0.00016028,2]
[346233457,1734795026344,269.45,0.0001812,30]
[346233477,1734795032343,-166.66666667,0.00018047,2]
[346233478,1734795032353,-307.22680014,0.00018047,2]
[346233479,1734795032392,-29774.60640723,0.00018047,2]
[346233480,1734795032405,-1000.09,0.00018047,2]
[346233481,1734795032417,-730.27679263,0.00018047,2]
[346233482,1734795032427,-1000.0,0.00018122,2]
[346233483,1734795032436,-165.13,0.00018147,2]
[346233484,1734795032446,-29306.0,0.00018174,2]
[346233485,1734795032456,-250.0,0.00018205,2]
[346233486,1734795032466,-564.21,0.00018292,2]
[346233487,1734795032477,-202.0,0.0001839,2]
[346233488,1734795032486,-493.95,0.00018548,2]
[346233489,1734795032496,-498.59,0.00018575,2]
[346233490,1734795032505,-498.61,0.00018611,2]
[346233491,1734795032515,-493.6,0.00018661,2]
[346233492,1734795032524,-150.0,0.00018712,2]
[346233493,1734795032534,-301.28,0.00018753,2]
[346233494,1734795032544,-73315.3255,0.00018799,2]
[346233495,1734795032554,-13217.49251879,0.000188,2]
[346233496,1734795032564,-1000.0,0.000188,2]
[346233497,1734795032574,-4105.4081,0.000188,2]
[346233498,1734795032584,-201.0372,0.000188,2]
[346233499,1734795032594,-155.17745676,0.000188,2]
[346233500,1734795032604,-202.0,0.0001883,2]
[346233501,1734795032613,-639.355,0.0001886,2]
[346233502,1734795032625,-497.06,0.00018867,2]
[346233503,1734795032635,-2530.345,0.00018867,2]
[346233504,1734795032646,-166.429,0.00018867,2]
[346233505,1734795032656,-98791.95272305,0.00018899,2]
[346233506,1734795032666,-5823.24072258,0.00018899,2]
[346233507,1734795032678,-1625.64,0.00018899,2]
[346233508,1734795032690,-51.11927742,0.00018899,2]
[346233509,1734795032700,-163.7638934,0.00018899,2]
[346233510,1734795032709,-540.46834161,0.00018899,2]
[346233511,1734795032719,-500.0,0.00018899,2]
[346233512,1734795032729,-500.0,0.00018899,2]
[346233513,1734795032739,-421.9940596,0.00018899,2]
[346233514,1734795032749,-3122.65442797,0.000189,2]
[346233515,1734795032768,-2513.02187203,0.000189,2]
[346233516,1734795032779,-2526.50002797,0.000189,2]
[346233517,1734795032792,-1007.93998328,0.000189,2]
[346233518,1734795032805,-34085.78854982,0.000189,2]
[346233519,1734795032821,-614.74399974,0.000189,2]
[346233520,1734795032832,-4637.05,0.000189,2]
[346233541,1734795038166,-34030.22824899,0.000189,2]
[346233542,1734795038178,-22872.45167,0.000189,2]
[346233543,1734795038189,-413.8062202,0.000189,2]
[346233544,1734795038199,-3693.7561,0.000189,2]
[346233545,1734795038208,-28692.4376798,0.000189,2]
[346233552,1734795040371,-58300.65231202,0.000189,2]
[346233553,1734795040386,-6337.5531022,0.000189,2]
[346233554,1734795040532,-3661.04825051,0.000189,2]
[346233555,1734795040733,-1127.85,0.000189,2]
[346233559,1734795044759,-298.5720004,0.000189,2]
[346233564,1734795046217,-5899.9999995,0.000189,2]
[346233565,1734795046276,-565.42501384,0.000189,2]
[346233566,1734795046315,-10464.20281772,0.000189,2]
[346233567,1734795046328,-25066.85652576,0.000189,2]
[346233568,1734795046339,-2481.57987107,0.000189,2]
[346233569,1734795046350,-26682.135436,0.000189,2]
[346233571,1734795046705,-49745.04779118,0.000189,2]
[346233572,1734795046715,-151.0,0.000189,2]
[346233573,1734795046725,-201.302098,0.000189,2]
[346233574,1734795046734,-151.0,0.000189,2]
[346233575,1734795046744,-154.355507,0.000189,2]
[346233576,1734795046754,-151.0,0.000189,2]
[346233577,1734795046763,-733.560852,0.000189,2]
[346233578,1734795046771,-733.560852,0.000189,2]
[346233579,1734795046781,-151.0,0.000189,2]
[346233580,1734795046790,-509.06,0.000189,2]
[346233581,1734795046800,-153.14,0.0001891,2]
[346233582,1734795046809,-500.0,0.00018973,2]
[346233583,1734795046818,-163.87617764,0.00018973,2]
[346233584,1734795046828,-500.0,0.00018973,2]
[346233585,1734795046837,-159.92493031,0.00018973,2]
[346233586,1734795046847,-500.0,0.00018973,2]
[346233587,1734795046856,-500.0,0.00018973,2]
[346233588,1734795046866,-160.32538803,0.00018973,2]
[346233589,1734795046876,-352.66501272,0.00018973,2]
[346233590,1734795046889,-500.0,0.00018973,2]
[346233591,1734795046898,-161.82854143,0.00018973,2]
[346233592,1734795046908,-7500.0,0.00018975,2]
[346233593,1734795046917,-397.62723665,0.00018984,2]
[346233594,1734795046927,-153.14,0.0001899,2]
[346233595,1734795046936,-153.14,0.0001899,2]
[346233596,1734795046946,-3594.04223337,0.00018999,2]
[346233597,1734795046955,-506.49,0.00019,2]
[346233598,1734795046964,-80561.36463821,0.00019,2]
[346233599,1734795129295,999.99999901,0.000175,2]
[346233603,1734795566428,-21886.02,0.00018095,2]
[346233604,1734795566456,-1000.0,0.00018129,2]
[346233605,1734795566480,-221.05709914,0.0001817,2]
[346233606,1734795566512,-250.0,0.00018173,2]
[346233607,1734795566547,-491.9,0.0001827,2]
[346233608,1734795566576,-492.44,0.0001832,2]
[346233609,1734795566604,-503.76,0.00018393,2]
[346233610,1734795566634,-631.924,0.0001848,2]
[346233611,1734795566660,-503.23,0.0001848,2]
[346233612,1734795566688,-507.98,0.0001848,2]
[346233613,1734795566715,-502.26,0.0001848,2]
[346233614,1734795566743,-505.21,0.0001848,2]
[346233615,1734795566771,-502.94,0.000185,2]
[346233616,1734795566800,-504.56,0.000185,2]
[346233617,1734795566828,-504.9,0.00018799,2]
[346233618,1734795566852,-507.33,0.00018799,2]
[346233619,1734795566878,-506.97,0.00018799,2]
[346233620,1734795566911,-34202.8977,0.00018799,2]
[346233621,1734795566937,-5000.0,0.000188,2]
[346233622,1734795566963,-214.56658235,0.000188,2]
[346233623,1734795566988,-151.0,0.000189,2]
[346233624,1734795567017,-2868.3608,0.000189,2]
[346233625,1734795567042,-16084.81053648,0.000189,2]
[346233626,1734795567067,-711.4741,0.000189,2]
[346233627,1734795567095,-26816.64093843,0.000189,2]
[346233628,1734795567125,-1000.0,0.000189,2]
[346233629,1734795567151,-164.37839321,0.000189,2]
[346233630,1734795567176,-2500.0,0.000189,2]
[346233631,1734795567203,-498.13,0.00018956,2]
[346233632,1734795567230,-166.1955007,0.00018973,2]
[346233633,1734795567259,-157.99933996,0.00018999,2]
[346233634,1734795567285,-458059.63536179,0.00019,2]
[346233635,1734795567314,-2000.0,0.00019,2]
[346233636,1734795567338,-151.0,0.00019,2]
[346233637,1734795567363,-151.0,0.00019,2]
[346233638,1734795567390,-151.0,0.00019,2]
[346233639,1734795567421,-2531.0,0.00019,2]
[346233640,1734795567447,-2144.48322,0.00019,2]
[346233641,1734795567473,-16084.8105364,0.00019009,2]
[346233642,1734795567500,-26816.64093843,0.00019009,2]
[346233643,1734795567524,-156.0,0.00019044,2]
[346233644,1734795567549,-184.22310168,0.00019078,2]
[346233645,1734795567573,-1921.05983066,0.00019078,2]
[346233646,1734795567597,-1538.32,0.000191,2]
[346233647,1734795567621,-150.0,0.000191,2]
[346233648,1734795567646,-150.0,0.000191,2]
[346233649,1734795567671,-16084.8105364,0.00019118,2]
[346233650,1734795567696,-26816.64093843,0.00019118,2]
[346233651,1734795567722,-172.13566146,0.00019127,2]
[346233652,1734795567746,-6356.85415449,0.00019129,2]
[346233653,1734795567771,-511.5524027,0.00019159,2]
[346233654,1734795567799,-511.13889382,0.00019173,2]
[346233655,1734795567823,-503.55721211,0.00019173,2]
[346233656,1734795567847,-500.0,0.00019177,2]
[346233657,1734795567872,-1100.0,0.00019177,2]
[346233658,1734795567896,-154.425417,0.00019178,2]
[346233659,1734795567922,-271.902231,0.00019178,2]
[346233660,1734795567947,-329.522709,0.00019178,2]
[346233661,1734795567972,-500.0,0.00019178,2]
[346233662,1734795567996,-500.0,0.00019178,2]
[346233663,1734795568020,-500.0,0.00019178,2]
[346233664,1734795568044,-500.0,0.00019178,2]
[346233665,1734795568070,-383.73465338,0.00019178,2]
[346233666,1734795568094,-500.0,0.00019178,2]
[346233667,1734795568118,-500.0,0.00019178,2]
[346233668,1734795568142,-500.0,0.00019178,2]
[346233669,1734795568165,-500.46630029,0.00019178,2]
[346233670,1734795568189,-500.0,0.00019178,2]
[346233671,1734795568213,-500.0,0.00019178,2]
[346233672,1734795568237,-500.0,0.00019178,2]
[346233673,1734795568261,-199.43033216,0.00019178,2]
[346233674,1734795568290,-502.99771732,0.00019178,2]
[346233675,1734795568314,-500.0,0.00019178,2]
[346233676,1734795568337,-500.0,0.00019178,2]
[346233677,1734795568361,-500.0,0.00019178,2]
[346233678,1734795568393,-500.0,0.00019178,2]
[346233679,1734795568433,-500.0,0.00019178,2]
[346233680,1734795568462,-500.0,0.00019178,2]
[346233681,1734795568488,-500.0,0.00019178,2]
[346233682,1734795568516,-500.0,0.00019178,2]
[346233683,1734795568543,-500.0,0.00019178,2]
[346233684,1734795568569,-500.0,0.00019178,2]
[346233685,1734795568595,-500.0,0.00019178,2]
[346233686,1734795568622,-503.82899292,0.00019178,2]
[346233687,1734795568651,-503.36802756,0.00019178,2]
[346233688,1734795568679,-500.0,0.00019178,2]
[346233689,1734795568708,-502.51839998,0.00019178,2]
[346233690,1734795568736,-504.58744811,0.00019178,2]
[346233691,1734795568764,-503.35459325,0.00019178,2]
[346233692,1734795568795,-397.04141069,0.00019178,2]
[346233693,1734795568827,-501.54287249,0.00019178,2]
[346233694,1734795568856,-500.0,0.00019178,2]
[346233695,1734795568885,-501.73283468,0.00019178,2]
[346233696,1734795569298,-500.0,0.00019178,2]
[346233697,1734795569344,-501.53132085,0.00019178,2]